bitfinex/quotes_ETHUSD_20240730
["timestamp","ask_amount","ask_price","bid_price","bid_amount"]
[1722309346259,10.48648509,3323.2,3323.1,35.0]
[1722309347855,8.59418222,3323.2,3323.1,35.0]
[1722309348182,5.53500127,3323.2,3323.1,37.4205]
[1722309348607,5.53500127,3323.2,3323.1,2.4205]
[1722309348984,5.53500127,3323.2,3323.1,35.0]
[1722309350458,7.94231127,3323.2,3323.1,35.0]
[1722309351162,10.89962127,3323.2,3323.1,35.0]
[1722309351499,12.21036957,3323.2,3323.1,35.0]
[1722309351742,14.67906957,3323.2,3323.1,35.0]
[1722309352021,2.40818,3322.0,3321.9,2.3616]
[1722309352323,2.40818,3322.0,3321.9,37.3616]
[1722309352466,2.53574447,3322.0,3321.9,37.3616]
[1722309354777,2.53574447,3322.0,3321.9,35.0]
[1722309356619,0.12756447,3322.0,3321.9,35.0]
[1722309357601,2.53574447,3322.0,3321.9,35.0]
[1722309359496,4.94392447,3322.0,3321.9,35.0]
[1722309359700,6.52068596,3322.0,3321.9,35.0]
[1722309360973,4.94300584,3322.0,3321.9,35.0]
[1722309361166,6.51968827,3322.0,3321.9,35.0]
[1722309361387,5.66776593,3322.0,3321.9,35.0]
[1722309361994,8.62594593,3322.0,3321.9,35.0]
[1722309362196,13.51796485,3322.0,3321.9,35.0]
[1722309363093,13.51796485,3322.0,3320.8,2.2514]
[1722309363094,2.40888,3321.1,3320.8,2.2514]
[1722309363622,2.53569121,3321.0,3320.9,35.0]
[1722309364213,4.94460121,3321.0,3320.9,35.0]
[1722309366291,2.53569121,3321.0,3320.9,35.0]
[1722309366511,0.12678121,3321.0,3320.9,37.328]
[1722309366696,0.12678121,3321.0,3320.9,40.37701288]
[1722309366893,9.77849,3321.6,3320.9,40.37701288]
[1722309367098,2.40867,3321.4,3320.9,5.37701288]
[1722309367292,2.40867,3321.4,3320.9,2.328]
[1722309367520,2.40869,3321.3,3320.9,2.328]
[1722309367698,2.53513698,3321.3,3320.9,2.328]
[1722309368024,2.40886,3321.1,3320.9,2.328]
[1722309368321,2.40891,3321.0,3320.9,2.328]
[1722309368532,2.53535698,3321.0,3320.9,2.328]
[1722309368680,2.53535698,3321.0,3320.9,37.328]
[1722309369293,2.53535698,3321.0,3320.9,35.0]
[1722309371000,4.94426698,3321.0,3320.9,35.0]
[1722309373589,2.53535698,3321.0,3320.9,35.0]
[1722309374104,0.12644698,3321.0,3320.9,35.0]
[1722309374787,2.40875,3321.3,3320.9,37.3638]
[1722309374990,0.12590121,3321.2,3321.0,0.06021688]
[1722309375301,2.40871,3321.3,3321.0,0.06021688]
[1722309375514,2.40862,3321.4,3321.2,35.0]
[1722309375884,2.40869,3321.3,3321.2,35.0]
[1722309378133,4.81738,3321.3,3321.2,35.0]
[1722309387247,2.40869,3321.3,3321.2,35.0]
[1722309388245,9.77849,3321.6,3321.3,2.2753]
[1722309388647,0.12619742,3321.5,3321.3,2.33551159]
[1722309388948,2.40834,3321.8,3321.3,2.33551159]
[1722309389106,0.12619742,3321.4,3321.3,2.33551159]
[1722309389312,2.40834,3321.8,3321.3,2.33551159]
[1722309389554,0.12619742,3321.4,3321.3,2.33551159]
[1722309390147,2.40827,3321.9,3321.3,37.33551159]
[1722309390347,0.12619742,3321.4,3321.3,39.74419159]
[1722309390514,2.40827,3321.9,3321.3,39.74419159]
[1722309390850,0.12619742,3321.8,3321.3,39.74419159]
[1722309391047,0.12619742,3321.8,3321.3,4.74419159]
[1722309391370,0.12619742,3321.8,3321.4,0.47441916]
[1722309391648,0.12619742,3321.8,3321.7,35.0]
[1722309394414,2.53452742,3321.8,3321.7,35.0]
[1722309399132,0.12619742,3321.8,3321.7,35.0]
[1722309402991,0.12619742,3321.8,3321.7,37.2506]
[1722309403202,7.37,3322.1,3321.7,40.29961288]
[1722309403369,0.12672624,3322.0,3321.7,40.29961288]
[1722309405290,0.12672624,3322.0,3321.7,37.2506]
[1722309406124,2.53490624,3322.0,3321.7,37.2506]
[1722309407307,2.40833,3321.8,3321.7,37.2506]
[1722309407507,2.40833,3321.8,3321.7,35.0]
[1722309407715,2.53516623,3321.8,3321.7,35.0]
[1722309409498,4.94349623,3321.8,3321.7,35.0]
[1722309410494,5.5955905,3321.8,3321.7,35.0]
[1722309410722,7.72325358,3321.8,3321.7,35.0]
[1722309410899,6.1455905,3321.8,3321.7,35.0]
[1722309411589,8.03852621,3321.8,3321.7,35.0]
[1722309412630,6.1455905,3321.8,3321.7,35.0]
[1722309414627,8.03919173,3321.8,3321.7,35.0]
[1722309415761,10.44752173,3321.8,3321.7,35.0]
[1722309415897,10.9832205,3321.8,3321.7,35.0]
[1722309420001,13.19367446,3321.8,3321.7,35.0]
[1722309420207,2.40921,3320.6,3320.4,2.3864]
[1722309420425,2.53556053,3320.5,3320.4,2.3864]
[1722309420617,0.12629053,3320.5,3320.4,2.3864]
[1722309420948,2.40927,3320.5,3320.4,2.3864]
[1722309421235,2.5354759,3320.5,3320.4,37.3864]
[1722309421920,0.1262059,3320.5,3320.4,37.3864]
[1722309422231,2.40917,3320.7,3320.4,37.3864]
[1722309422451,0.12607893,3320.6,3320.4,2.3864]
[1722309422812,0.12607893,3320.6,3320.5,35.0]
[1722309423043,2.53527893,3320.6,3320.5,35.0]
[1722309424038,0.12607893,3320.6,3320.5,35.0]
[1722309426044,2.53527893,3320.6,3320.5,35.0]
[1722309431067,5.59671414,3320.6,3320.5,35.0]
[1722309431432,7.17433701,3320.6,3320.5,35.0]
[1722309431636,6.14671414,3320.6,3320.5,35.0]
[1722309432647,7.72357572,3320.6,3320.5,35.0]
[1722309432839,6.14671414,3320.6,3320.5,35.0]
[1722309433475,2.53527893,3320.6,3320.5,35.0]
[1722309433662,2.53527893,3320.6,3320.5,37.4117]
[1722309435489,2.53527893,3320.6,3320.5,35.0]
[1722309438780,4.94447893,3320.6,3320.5,35.0]
[1722309438977,5.49447893,3320.6,3320.5,35.0]
[1722309439178,6.44243768,3320.6,3320.5,35.0]
[1722309441368,8.01811964,3320.6,3320.5,35.0]
[1722309441868,14.11753768,3320.6,3320.5,35.0]
[1722309442696,16.00835603,3320.6,3320.5,35.0]
[1722309443883,14.11753768,3320.6,3320.5,35.0]
[1722309445014,2.40984,3319.8,3319.4,2.4117]
[1722309445318,2.40967,3320.0,3319.4,2.4117]
[1722309445319,2.53517282,3319.7,3319.4,2.4117]
[1722309445569,2.53517282,3319.7,3319.6,35.0]
[1722309446522,0.12531282,3319.7,3319.6,35.0]
[1722309446889,2.40967,3320.0,3319.6,35.0]
[1722309447108,2.53508659,3319.7,3319.6,35.0]
[1722309447314,2.40985,3319.7,3319.6,35.0]
[1722309447629,2.53508659,3319.7,3319.6,35.0]
[1722309448506,4.94493659,3319.7,3319.6,35.0]
[1722309449100,8.39928025,3319.7,3319.6,35.0]
[1722309449316,12.97391432,3319.7,3319.6,35.0]
[1722309450837,8.98943025,3319.7,3319.6,35.0]
[1722309451041,0.12523659,3319.7,3319.6,35.0]
[1722309451338,7.37,3320.3,3319.7,2.2583]
[1722309451536,12.41,3320.6,3319.9,2.2583]
[1722309451537,2.40921,3320.6,3319.9,2.2583]
[1722309451838,2.40921,3320.6,3320.0,0.06023169]
[1722309452012,7.37,3320.7,3320.5,35.0]
[1722309452212,7.37,3320.7,3320.6,2.2583]
[1722309452427,2.40906,3320.8,3320.6,2.2583]
[1722309453415,2.40906,3320.8,3320.5,35.0]
[1722309453416,4.8184,3320.6,3320.5,35.0]
[1722309453747,2.2831,3320.8,3319.5,2.3956]
[1722309453748,2.40943,3320.3,3319.5,2.3956]
[1722309453915,4.22547431,3320.3,3319.5,2.3956]
[1722309454111,2.40957,3320.1,3319.6,35.0]
[1722309454332,3.0,3320.2,3319.6,35.0]
[1722309454539,3.0,3320.2,3319.5,2.3956]
[1722309455254,6.98452131,3320.3,3320.0,35.0]
[1722309455959,2.40956,3320.1,3320.0,35.0]
[1722309456118,8.51758613,3320.1,3320.0,35.0]
[1722309456318,10.09268744,3320.1,3320.0,35.0]
[1722309456922,8.51758613,3320.1,3320.0,35.0]
[1722309457284,9.39505646,3320.1,3320.0,35.0]
[1722309457555,8.36912,3320.1,3320.0,35.0]
[1722309458120,9.39516627,3320.1,3320.0,35.0]
[1722309459469,9.39530109,3320.1,3320.0,35.0]
[1722309460217,9.39545514,3320.1,3320.0,35.0]
[1722309460834,7.81912,3320.1,3320.0,35.0]
[1722309461032,8.601032,3320.1,3320.0,35.0]
[1722309461258,10.17758504,3320.1,3320.0,35.0]
[1722309461754,8.601032,3320.1,3320.0,35.0]
[1722309462161,9.151032,3320.1,3320.0,35.0]
[1722309462727,8.601032,3320.1,3320.0,35.0]
[1722309463624,8.72638292,3320.1,3320.0,35.0]
[1722309466771,5.53491092,3320.1,3320.0,35.0]
[1722309469080,4.70333683,3320.1,3320.0,35.0]
[1722309469245,0.12535092,3320.1,3320.0,35.0]
[1722309469641,7.37,3320.5,3320.0,39.85993]
[1722309469840,0.1253467,3320.4,3320.1,0.06023168]
[1722309470040,0.1253467,3320.4,3320.1,0.55224785]
[1722309470240,0.1253467,3320.4,3320.3,35.0]
[1722309470645,1.57776651,3320.6,3320.3,35.0]
[1722309470852,2.53483683,3320.5,3320.0,2.4503]
[1722309471163,2.40934,3320.4,3320.0,2.4503]
[1722309471366,2.4095,3320.2,3320.0,2.4503]
[1722309471562,3.98719651,3320.3,3319.6,2.4503]
[1722309471768,0.12573616,3320.1,3319.7,0.24503]
[1722309471941,2.40943,3320.3,3319.7,0.24503]
[1722309472282,1.57776651,3320.3,3319.6,2.4503]
[1722309472485,2.40957,3320.1,3319.6,2.4503]
[1722309472646,2.40964,3320.0,3319.6,2.4503]
[1722309472843,2.40964,3320.0,3319.9,35.0]
[1722309473040,2.53527457,3320.0,3319.9,35.0]
[1722309475058,4.94496457,3320.0,3319.9,35.0]
[1722309475265,6.52387119,3320.0,3319.9,35.0]
[1722309475487,4.94496457,3320.0,3319.9,35.0]
[1722309476379,5.62887199,3320.0,3319.9,35.0]
[1722309476550,4.94496457,3320.0,3319.9,35.0]
[1722309477176,6.84010003,3320.0,3319.9,35.0]
[1722309477391,8.49496457,3320.0,3319.9,35.0]
[1722309477688,10.39018672,3320.0,3319.9,35.0]
[1722309478781,8.49496457,3320.0,3319.9,35.0]
[1722309479176,11.23957419,3320.0,3319.9,35.0]
[1722309479645,11.2396351,3320.0,3319.9,35.0]
[1722309480080,9.34446103,3320.0,3319.9,35.0]
[1722309480291,9.34446103,3320.0,3319.3,2.2951]
[1722309480292,2.40991,3319.7,3319.3,2.2951]
[1722309480587,3.9891981,3319.7,3319.3,2.2951]
[1722309480884,2.53512581,3319.6,3319.4,35.0]
[1722309481297,7.82,3319.5,3319.4,35.0]
[1722309481483,8.49516038,3319.5,3319.4,35.0]
[1722309481803,13.1161968,3319.5,3319.4,35.0]
[1722309482017,10.90516038,3319.5,3319.4,35.0]
[1722309482303,13.11629726,3319.5,3319.4,35.0]
[1722309482494,13.6498898,3319.5,3319.4,35.0]
[1722309483263,11.43875292,3319.5,3319.4,35.0]
[1722309484270,9.02875292,3319.5,3319.4,35.0]
[1722309485281,10.92340657,3319.5,3319.4,35.0]
[1722309485603,5.53516038,3319.5,3319.4,35.0]
[1722309485971,7.11380549,3319.5,3319.4,35.0]
[1722309486468,5.53516038,3319.5,3319.4,35.0]
[1722309486802,7.11381094,3319.5,3319.4,35.0]
[1722309487206,7.11380246,3319.5,3319.4,35.0]
[1722309487609,5.53516038,3319.5,3319.4,35.0]
[1722309487812,7.11383153,3319.5,3319.4,35.0]
[1722309488189,5.53516038,3319.5,3319.4,35.0]
[1722309488394,0.12516038,3319.5,3319.4,35.0]
[1722309488590,0.12516038,3319.5,3319.4,35.84592198]
[1722309488899,2.40971,3319.9,3319.4,35.84592198]
[1722309489109,0.12467332,3319.5,3319.4,0.84592198]
[1722309489282,2.40971,3319.9,3319.4,0.84592198]
[1722309489481,2.40971,3319.9,3319.8,35.0]
[1722309490491,9.77957,3320.1,3319.8,35.0]
[1722309490699,9.77957,3320.1,3319.3,4.67014]
[1722309490700,2.40964,3320.0,3319.3,4.67014]
[1722309490893,2.40971,3319.9,3319.3,4.67014]
[1722309491117,2.40971,3319.9,3319.8,35.0]
[1722309493723,2.53458659,3319.9,3319.8,35.0]
[1722309499469,4.11313217,3319.9,3319.8,35.0]
[1722309499976,5.59661581,3319.9,3319.8,35.0]
[1722309500185,12.90063051,3319.9,3319.8,35.0]
[1722309500380,13.45063051,3319.9,3319.8,35.0]
[1722309501283,11.55637581,3319.9,3319.8,35.0]
[1722309501884,13.45175457,3319.9,3319.8,35.0]
[1722309502388,11.55637581,3319.9,3319.8,35.0]
[1722309502792,2.41017,3319.3,3318.9,2.4608]
[1722309503114,2.41034,3319.1,3318.9,2.4608]
[1722309503244,2.41034,3319.1,3319.0,35.0]
[1722309503684,5.49571605,3319.1,3319.0,35.0]
[1722309503990,10.39112923,3319.1,3319.0,35.0]
[1722309504277,8.49571605,3319.1,3319.0,35.0]
[1722309504656,10.39102646,3319.1,3319.0,35.0]
[1722309504874,11.93806438,3319.1,3319.0,35.0]
[1722309505187,10.04275397,3319.1,3319.0,35.0]
[1722309505687,12.45308397,3319.1,3319.0,35.0]
[1722309506188,14.34839438,3319.1,3319.0,35.0]
[1722309506375,14.3477283,3319.1,3319.0,35.0]
[1722309506959,12.45308397,3319.1,3319.0,35.0]
[1722309508685,14.86341397,3319.1,3319.0,35.0]
[1722309508997,12.45307397,3319.1,3319.0,35.0]
[1722309510392,14.34566941,3319.1,3319.0,35.0]
[1722309510692,12.45307397,3319.1,3319.0,35.0]
[1722309510894,14.34558899,3319.1,3319.0,35.0]
[1722309511196,14.91097397,3319.1,3319.0,35.0]
[1722309512708,2.41099,3318.2,3317.9,2.3065]
[1722309512857,2.41109,3318.0,3317.9,2.3065]
[1722309513284,2.53461496,3318.0,3317.4,2.41151]
[1722309513489,2.53461496,3318.0,3317.9,35.0]
[1722309519902,0.12352496,3318.0,3317.9,35.0]
[1722309522337,2.53461496,3318.0,3317.9,35.0]
[1722309525052,0.12352496,3318.0,3317.9,35.0]
[1722309525204,0.12352496,3318.0,3317.9,38.04901288]
[1722309525404,5.41095,3318.2,3317.9,38.04901288]
[1722309525728,0.12358852,3318.0,3317.9,35.0]
[1722309525933,2.41081,3318.4,3317.9,35.0]
[1722309526120,0.12366909,3318.0,3317.9,35.0]
[1722309526324,2.41102,3318.1,3317.9,35.0]
[1722309526549,0.12366909,3318.0,3317.9,35.0]
[1722309529926,2.53475909,3318.0,3317.9,35.0]
[1722309530226,4.94584909,3318.0,3317.9,35.0]
[1722309530548,2.53475909,3318.0,3317.9,35.0]
[1722309539367,5.49584909,3318.0,3317.9,35.0]
[1722309539586,8.703236,3318.0,3317.9,35.0]
[1722309539776,16.8025533,3318.0,3317.9,35.0]
[1722309540113,15.228326,3318.0,3317.9,35.0]
[1722309542798,12.817236,3318.0,3317.9,35.0]
[1722309543000,10.97437308,3318.0,3317.9,35.0]
[1722309543215,5.53475909,3318.0,3317.9,35.0]
[1722309545481,7.94584909,3318.0,3317.9,35.0]
[1722309545910,5.53475909,3318.0,3317.9,35.0]
[1722309547083,7.94584909,3318.0,3317.9,35.0]
[1722309547283,9.52418252,3318.0,3317.9,35.0]
[1722309547714,7.11309252,3318.0,3317.9,35.0]
[1722309548528,5.53475909,3318.0,3317.9,35.0]
[1722309551391,8.93021954,3318.0,3317.9,35.0]
[1722309551821,6.51912954,3318.0,3317.9,35.0]
[1722309552540,5.53475909,3318.0,3317.9,35.0]
[1722309555745,1.70620796,3318.0,3317.9,37.3208]
[1722309556048,0.12366909,3318.0,3317.9,42.14312]
[1722309556253,7.37,3319.0,3317.9,42.14312]
[1722309556254,1.58253887,3318.7,3318.5,2.4842]
[1722309556422,1.58253887,3318.8,3318.6,0.4895]
[1722309556790,7.37,3319.0,3318.6,0.4895]
[1722309556791,1.58253887,3318.9,3318.6,0.4895]
[1722309557051,1.58253887,3318.9,3318.8,35.0]
[1722309557208,8.95253887,3319.0,3318.8,35.0]
[1722309557411,2.41051,3318.8,3318.5,2.4842]
[1722309557643,3.99304887,3318.8,3318.5,2.4842]
[1722309558012,3.99304887,3318.8,3318.7,35.0]
[1722309558225,2.41051,3318.8,3318.7,35.0]
[1722309562331,1.5795508,3318.9,3318.7,35.0]
[1722309562535,3.9899908,3318.9,3318.7,35.0]
[1722309562729,2.4105,3318.8,3318.7,35.0]
[1722309563718,2.4105,3318.8,3318.5,2.4842]
[1722309563914,2.53060619,3318.8,3318.5,2.4842]
[1722309564143,2.53060619,3318.8,3318.7,35.0]
[1722309565127,0.12010619,3318.8,3318.7,35.0]
[1722309565314,0.12010619,3318.8,3318.7,38.04901288]
[1722309565516,0.12010619,3318.8,3318.7,42.85349288]
[1722309565747,7.37,3319.0,3318.7,40.44291288]
[1722309565967,0.12008079,3318.8,3318.7,7.85349288]
[1722309566171,7.37,3319.0,3318.8,2.41049]
[1722309566478,7.37,3319.0,3318.8,2.41045]
[1722309566631,0.12016129,3318.9,3318.8,2.41045]
[1722309566841,0.12016129,3318.9,3318.8,37.41045]
[1722309567056,7.37,3319.0,3318.8,37.41045]
[1722309567332,7.37,3319.5,3318.9,3.04901288]
[1722309567578,7.37,3319.5,3319.2,2.41021]
[1722309567912,1.57882207,3320.1,3319.5,4.78258]
[1722309568190,1.57882207,3320.3,3319.7,2.40984]
[1722309568427,1.57598129,3320.4,3319.8,0.06023702]
[1722309568540,3.98525038,3320.5,3319.8,0.06023702]
[1722309568742,0.12038579,3320.3,3319.9,35.0]
[1722309568945,3.98527839,3320.5,3319.9,35.0]
[1722309569137,0.12038579,3320.2,3319.9,35.0]
[1722309569442,2.40963,3320.0,3319.9,35.0]
[1722309569759,4.81926,3320.0,3319.9,35.0]
[1722309569928,4.93964579,3320.0,3319.9,35.0]
[1722309572074,2.53001579,3320.0,3319.9,35.0]
[1722309572480,0.12038579,3320.0,3319.9,35.0]
[1722309572697,2.4095,3320.2,3319.9,35.0]
[1722309572916,0.12084328,3320.0,3319.9,35.0]
[1722309573127,2.95958,3320.1,3319.9,35.0]
[1722309573276,0.12091103,3320.0,3319.9,35.0]
[1722309573709,0.12091103,3320.0,3319.9,38.04901288]
[1722309573902,2.40928,3320.5,3319.9,38.04901288]
[1722309574131,2.40935,3320.4,3319.9,38.04901288]
[1722309574331,2.53033727,3320.4,3319.9,3.04901288]
[1722309574532,2.53033727,3320.4,3319.8,0.06023696]
[1722309574742,0.12098727,3320.4,3320.3,35.0]
[1722309575004,2.40924,3320.6,3320.3,35.0]
[1722309575203,0.12117359,3320.5,3319.7,2.3387]
[1722309575426,2.40912,3320.8,3320.0,2.40957]
[1722309575625,2.53030359,3320.7,3320.5,35.0]
[1722309575935,2.40913,3320.7,3320.5,35.0]
[1722309579721,0.12144453,3320.6,3320.5,35.0]
[1722309581123,2.53064453,3320.6,3320.5,35.0]
[1722309581317,4.93984453,3320.6,3320.5,35.0]
[1722309588985,8.08394498,3320.6,3320.5,35.0]
[1722309589217,8.63394498,3320.6,3320.5,35.0]
[1722309589421,8.63394498,3320.6,3319.3,2.4528]
[1722309589422,2.40997,3319.6,3319.3,2.4528]
[1722309589720,0.12152496,3319.5,3319.3,2.4528]
[1722309589913,0.12152496,3319.5,3319.4,0.24528]
[1722309590060,2.40986,3319.7,3319.4,0.24528]
[1722309590388,2.40986,3319.7,3319.6,35.0]
[1722309594505,4.81972,3319.7,3319.6,35.0]
[1722309596373,5.36972,3319.7,3319.6,35.0]
[1722309597084,11.557528,3319.7,3319.6,35.0]
[1722309597299,8.557528,3319.7,3319.6,35.0]
[1722309598040,11.557528,3319.7,3319.6,35.0]
[1722309598320,2.41029,3319.1,3317.7,2.3495]
[1722309598518,2.41088,3318.3,3317.7,2.3495]
[1722309598670,0.12108466,3318.2,3317.7,2.3495]
[1722309599283,0.12108466,3318.2,3318.1,35.0]
[1722309599482,2.41088,3318.3,3318.1,35.0]
[1722309599685,0.12075006,3318.2,3317.7,2.3495]
[1722309599906,2.41073,3318.5,3317.8,0.29521855]
[1722309600130,0.12075006,3318.4,3317.8,2.64617]
[1722309600302,0.12075006,3318.4,3317.9,2.47140828]
[1722309600500,7.37,3318.7,3318.0,2.3163]
[1722309600706,0.12067379,3318.6,3318.3,35.0]
[1722309602235,2.53133379,3318.6,3318.3,35.0]
[1722309603849,2.53133379,3318.6,3318.0,2.3163]
[1722309604031,2.41073,3318.5,3318.1,0.0602667]
[1722309604200,0.12019519,3318.4,3318.1,0.0602667]
[1722309604405,0.12019519,3318.4,3318.3,35.0]
[1722309606032,2.41062,3318.7,3318.3,35.0]
[1722309606233,0.12019519,3318.6,3318.0,2.3163]
[1722309606528,0.12019519,3318.6,3318.1,0.53301268]
[1722309606835,0.12019519,3318.6,3318.5,35.0]
[1722309607947,2.41037,3319.0,3318.5,35.0]
[1722309608156,7.37,3319.1,3318.6,2.37026117]
[1722309608311,7.37,3319.1,3318.7,2.41057]
[1722309608634,7.37,3319.1,3319.0,35.0]
[1722309609152,9.77971,3319.9,3319.2,2.31]
[1722309609349,9.77971,3319.9,3319.3,0.06024575]
[1722309609972,7.37,3319.9,3319.6,35.0]
[1722309610314,9.77972,3319.9,3319.6,35.0]
[1722309610915,2.40979,3319.8,3319.6,35.0]
[1722309611112,2.40985,3319.7,3319.6,35.0]
[1722309611360,6.038664,3319.7,3319.6,35.0]
[1722309612127,6.588664,3319.7,3319.6,35.0]
[1722309613145,2.40985,3319.7,3319.6,35.0]
[1722309613344,9.77971,3319.9,3319.6,35.0]
[1722309613852,0.12097456,3319.8,3319.6,35.0]
[1722309615094,3.0,3320.2,3319.6,35.0]
[1722309615244,2.40984,3319.8,3319.6,35.0]
[1722309615668,2.53098125,3319.7,3319.6,35.0]
[1722309619347,0.12113125,3319.7,3319.6,35.0]
[1722309619585,0.12113125,3319.7,3319.6,40.46861288]
[1722309619756,2.40955,3320.2,3319.6,40.46861288]
[1722309619946,2.40955,3320.2,3319.7,0.06023738]
[1722309620147,0.12098727,3320.1,3319.7,0.06023738]
[1722309620350,0.12098727,3320.1,3320.0,35.0]
[1722309620550,2.53054727,3320.1,3320.0,35.0]
[1722309620796,5.434114,3320.1,3320.0,35.0]
[1722309620956,4.94010727,3320.1,3320.0,35.0]
[1722309621150,5.49010727,3320.1,3320.0,35.0]
[1722309626500,7.0656606,3320.1,3320.0,35.0]
[1722309626785,7.06605949,3320.1,3320.0,35.0]
[1722309626987,8.24455144,3320.1,3320.0,35.0]
[1722309628666,6.66859922,3320.1,3320.0,35.0]
[1722309631880,6.70633641,3320.1,3320.0,35.0]
[1722309632209,8.28323639,3320.1,3320.0,35.0]
[1722309632382,7.10474444,3320.1,3320.0,35.0]
[1722309633002,2.56828446,3320.1,3320.0,35.0]
[1722309633876,4.14518444,3320.1,3320.0,35.0]
[1722309635296,2.56828446,3320.1,3320.0,35.0]
[1722309635506,4.40254859,3320.1,3320.0,35.0]
[1722309636294,2.82511291,3320.1,3320.0,35.0]
[1722309636501,4.40258913,3320.1,3320.0,35.0]
[1722309637198,6.81214913,3320.1,3320.0,35.0]
[1722309638617,6.81212989,3320.1,3320.0,35.0]
[1722309638808,4.40256989,3320.1,3320.0,35.0]
[1722309638977,2.82511291,3320.1,3320.0,35.0]
[1722309639181,2.56828446,3320.1,3320.0,35.0]
[1722309642709,4.97784446,3320.1,3320.0,35.0]
[1722309642880,6.55499393,3320.1,3320.0,35.0]
[1722309643512,4.97784446,3320.1,3320.0,35.0]
[1722309643683,2.56828446,3320.1,3320.0,35.0]
[1722309645761,0.15872446,3320.1,3320.0,35.0]
[1722309645905,0.15872446,3320.1,3320.0,40.35781288]
[1722309646239,1.577133,3320.5,3320.0,40.35781288]
[1722309646542,0.15885997,3320.4,3320.1,0.06023077]
[1722309646701,7.37,3320.7,3320.1,0.06023077]
[1722309646702,8.947133,3320.7,3320.2,2.3088]
[1722309647122,2.40928,3320.5,3320.3,35.0]
[1722309647447,2.40934,3320.4,3320.3,35.0]
[1722309650135,4.81868,3320.4,3320.3,35.0]
[1722309650340,5.45831558,3320.4,3320.3,35.0]
[1722309650505,7.86765558,3320.4,3320.3,35.0]
[1722309650706,11.41765558,3320.4,3320.3,35.0]
[1722309651727,13.62886534,3320.4,3320.3,35.0]
[1722309652652,11.41765558,3320.4,3320.3,35.0]
[1722309652811,13.62983528,3320.4,3320.3,35.0]
[1722309653349,11.41765558,3320.4,3320.3,35.0]
[1722309653707,14.0296471,3320.4,3320.3,35.0]
[1722309654917,14.03295409,3320.4,3320.3,35.0]
[1722309655549,14.03289799,3320.4,3320.3,35.0]
[1722309657260,14.03281814,3320.4,3320.3,35.0]
[1722309658179,11.41765558,3320.4,3320.3,35.0]
[1722309658853,11.57627844,3320.4,3320.3,35.0]
[1722309659051,14.19128253,3320.4,3320.3,35.0]
[1722309659421,11.57627844,3320.4,3320.3,35.0]
[1722309661075,14.19141176,3320.4,3320.3,35.0]
[1722309661571,11.57627844,3320.4,3320.3,35.0]
[1722309662346,7.97730286,3320.4,3320.3,35.0]
[1722309663070,10.19098718,3320.4,3320.3,35.0]
[1722309663233,7.97730286,3320.4,3320.3,35.0]
[1722309663437,10.19098718,3320.4,3320.3,35.0]
[1722309663712,10.19095779,3320.4,3320.3,35.0]
[1722309663872,11.21005357,3320.4,3320.3,35.0]
[1722309664041,11.95573864,3320.4,3320.3,35.0]
[1722309664745,14.57061853,3320.4,3320.3,35.0]
[1722309667792,2.40989,3319.7,3319.5,2.4732]
[1722309667940,1.58127653,3319.6,3319.5,2.4732]
[1722309668262,1.58127653,3319.8,3319.6,2.3189]
[1722309668464,1.58127653,3319.8,3319.6,2.37914115]
[1722309668790,2.21378715,3320.5,3320.0,2.40963]
[1722309668791,1.58127653,3320.1,3320.0,2.40963]
[1722309668975,1.58127653,3320.5,3320.2,2.3895]
[1722309669276,1.58127653,3320.6,3320.3,2.4497279]
[1722309669452,2.40884,3321.1,3320.3,4.8591379]
[1722309669453,8.95127653,3320.7,3320.3,4.8591379]
[1722309669780,8.95127653,3320.7,3320.5,2.4748]
[1722309669983,8.95024281,3320.7,3320.5,2.4748]
[1722309670969,7.37,3320.7,3320.5,2.4748]
[1722309672614,7.37,3320.7,3320.4,2.89519379]
[1722309672615,7.37,3320.7,3320.6,7.62242444]
[1722309673576,1.58024281,3321.3,3320.6,7.62242444]
[1722309673577,1.58024281,3321.3,3320.8,2.48]
[1722309673907,4.30477137,3321.6,3320.9,2.72131538]
[1722309673908,3.98671385,3321.4,3320.9,2.72131538]
[1722309674230,1.57809385,3321.3,3320.9,2.72131538]
[1722309674563,1.57809385,3321.4,3320.9,2.72131538]
[1722309674758,1.57809385,3321.5,3320.9,2.72131538]
[1722309675184,3.98657385,3321.6,3320.9,2.72131538]
[1722309675388,1.57809385,3321.5,3321.0,0.51303654]
[1722309675614,9.7784,3321.7,3321.1,0.06021345]
[1722309675615,1.57691878,3321.6,3321.1,0.06021345]
[1722309676397,9.7784,3321.7,3321.1,0.06021345]
[1722309676620,11.35481129,3321.7,3321.1,0.06021345]
[1722309677550,2.40863,3321.4,3321.0,0.51303654]
[1722309677752,2.40872,3321.3,3320.9,2.4131]
[1722309678331,3.98499129,3321.5,3320.9,2.4131]
[1722309678492,3.98489129,3321.6,3321.0,0.06021353]
[1722309678716,2.40848,3321.6,3321.0,0.06021353]
[1722309678922,3.0,3321.7,3321.0,0.06021353]
[1722309679148,2.40835,3321.8,3321.2,2.331]
[1722309679350,3.0,3321.9,3321.3,0.49599738]
[1722309679964,5.40827,3321.9,3321.4,2.345]
[1722309680323,8.9449528,3322.0,3321.5,0.06020775]
[1722309680540,2.40812,3322.1,3321.5,0.06020775]
[1722309681026,2.40798,3322.3,3321.6,2.3985]
[1722309681194,2.40798,3322.3,3321.7,0.06020143]
[1722309681396,2.40819,3322.0,3321.6,2.3985]
[1722309681596,2.40819,3322.0,3321.6,2.45870329]
[1722309681916,2.40819,3322.0,3321.6,2.3985]